bitfinex/quotes_SOLUSD_20220226
["timestamp","ask_amount","ask_price","bid_price","bid_amount"]
[1645910722135,54.57404533,92.347,92.251,2.3895637]
[1645910722536,54.57404533,92.347,92.251,2.68662675]
[1645910722737,54.57404533,92.347,92.25,13.03]
[1645910723137,54.57404533,92.347,92.234,2.77344674]
[1645910723537,16.2611,92.33,92.25,16.2604]
[1645910723837,48.67399606,92.329,92.251,3.09761922]
[1645910724038,71.53389606,92.329,92.251,3.09761922]
[1645910725439,48.67399606,92.329,92.251,3.09761922]
[1645910726739,108.66622579,92.52,92.253,109.1]
[1645910726943,1.4848523,92.462,92.272,114.5]
[1645910727140,2.981087,92.395,92.285,65.36]
[1645910727347,2.981087,92.457,92.292,109.1]
[1645910727541,2.981087,92.459,92.301,174.46]
[1645910727740,45.59761666,92.458,92.303,109.1]
[1645910727944,45.59761666,92.458,92.304,2.85032646]
[1645910728241,44.59761666,92.458,92.305,174.46]
[1645910728442,44.59761666,92.458,92.321,174.46]
[1645910728641,44.59761666,92.458,92.322,2.64927854]
[1645910728840,44.59761666,92.458,92.322,20.47052425]
[1645910729042,44.59761666,92.458,92.323,203.83822469]
[1645910729239,44.59761666,92.458,92.325,108.6]
[1645910729439,44.59761666,92.458,92.34,13.03]
[1645910729640,23.617,92.457,92.341,108.6]
[1645910729839,23.617,92.457,92.342,2.36332784]
[1645910730240,23.617,92.457,92.351,108.6]
[1645910730540,23.617,92.457,92.352,2.41763791]
[1645910731139,23.617,92.457,92.351,2.56579825]
[1645910731339,16.2408,92.45,92.37,16.2367]
[1645910731544,1.8508109,92.456,92.344,4.328]
[1645910731741,23.617,92.457,92.341,3.06516212]
[1645910732040,1.6092893,92.456,92.341,112.16516212]
[1645910732242,1.6092893,92.456,92.342,3.03000345]
[1645910732442,23.617,92.457,92.342,3.03000345]
[1645910732643,16.2426,92.44,92.36,16.2421]
[1645910732942,53.73561093,92.439,92.33,13.03]
[1645910733143,24.9393,92.438,92.332,2.54923178]
[1645910733345,24.9393,92.438,92.331,2.82318058]
[1645910733542,24.9393,92.438,92.35,16.2429]
[1645910733742,24.9393,92.438,92.351,2.28625278]
[1645910735345,24.4393,92.438,92.351,2.28625278]
[1645910735547,16.2434,92.43,92.351,2.28625278]
[1645910736652,1.43310032,92.429,92.341,2.26587144]
[1645910736849,16.2492,92.41,92.318,2.4488591]
[1645910737050,56.80504923,92.408,92.31,4.329]
[1645910737253,55.05877175,92.408,92.31,4.329]
[1645910737658,22.5091,92.407,92.294,2.93408089]
[1645910737854,22.5006,92.406,92.294,2.93408089]
[1645910738455,16.2526,92.39,92.294,2.93408089]
[1645910738654,79.75729471,92.389,92.294,2.93408089]
[1645910739455,22.5091,92.407,92.299,109.1]
[1645910739656,22.5091,92.407,92.313,174.46]
[1645910739860,22.5091,92.407,92.321,109.1]
[1645910740057,22.5091,92.407,92.322,2.36768769]
[1645910740256,22.5091,92.407,92.327,109.1]
[1645910740459,46.8281,92.479,92.332,65.36]
[1645910740656,46.8281,92.479,92.345,109.1]
[1645910740864,46.8281,92.479,92.355,109.1]
[1645910741059,46.8281,92.479,92.371,109.1]
[1645910741256,46.8281,92.479,92.381,109.1]
[1645910741458,55.59046365,92.478,92.382,2.84970648]
[1645910741658,55.59046365,92.478,92.39,16.2365]
[1645910741861,1.83660255,92.477,92.357,3.09786476]
[1645910742057,1.83660255,92.477,92.341,2.96226596]
[1645910742357,1.39156941,92.476,92.341,2.96226596]
[1645910742757,16.2411,92.45,92.351,109.1]
[1645910742957,82.56744195,92.449,92.352,2.58841179]
[1645910743158,82.56744195,92.449,92.351,2.27079764]
[1645910743357,82.56744195,92.449,92.352,4.329]
[1645910743959,82.56744195,92.449,92.353,109.1]
[1645910744158,82.56744195,92.449,92.354,2.80841942]
[1645910744362,82.56744195,92.449,92.36,16.2408]
[1645910744564,82.56744195,92.449,92.361,2.7798906]
[1645910744760,1.52780998,92.448,92.361,2.7798906]
[1645910744959,1.52780998,92.448,92.341,6.9043955]
[1645910745161,82.56744195,92.449,92.341,6.9043955]
[1645910745362,82.56744195,92.449,92.341,36.70731819]
[1645910745562,82.56744195,92.449,92.35,16.2436]
[1645910745762,82.56744195,92.449,92.351,112.11985739]
[1645910745962,82.56744195,92.449,92.352,2.94720294]
[1645910746162,82.56744195,92.449,92.351,109.1]
[1645910746361,82.56744195,92.449,92.353,56.6410993]
[1645910746563,82.56744195,92.449,92.354,2.98357095]
[1645910746765,82.56744195,92.449,92.36,16.2419]
[1645910746966,82.56744195,92.449,92.361,2.59195674]
[1645910747167,82.56744195,92.449,92.351,2.35167245]
[1645910747168,1.80787759,92.448,92.351,2.35167245]
[1645910747370,1.80787759,92.448,92.32,37.7208542]
[1645910747371,198.04744195,92.449,92.321,3.04738469]
[1645910747567,1.66112755,92.448,92.311,2.37165618]
[1645910747768,1.66112755,92.448,92.311,109.1]
[1645910748069,1.66112755,92.448,92.32,13.03]
[1645910748268,16.2434,92.43,92.32,29.2776]
[1645910748467,98.15684342,92.429,92.321,2.39188701]
[1645910748671,1.76919254,92.428,92.321,2.39188701]
[1645910749071,96.4386799,92.429,92.321,2.39188701]
[1645910749273,1.64025378,92.428,92.321,2.39188701]
[1645910749476,1.37914232,92.506,92.351,65.36]
[1645910749674,71.9403,92.519,92.361,65.36]
[1645910749878,71.9403,92.519,92.362,2.46462626]
[1645910750077,1.61155054,92.518,92.365,2.509621]
[1645910750475,1.42248894,92.516,92.365,2.509621]
[1645910750674,1.42248894,92.516,92.367,109.1]
[1645910750875,1.42248894,92.516,92.38,13.03]
[1645910751092,16.2358,92.48,92.39,16.2344]
[1645910751290,50.00330733,92.478,92.391,2.25484244]
[1645910751694,50.00330733,92.478,92.39,13.03]
[1645910752393,50.00330733,92.478,92.381,2.55687421]
[1645910752793,50.00330733,92.478,92.371,2.85671756]
[1645910753594,51.35889298,92.478,92.371,2.85671756]
[1645910753995,50.00330733,92.478,92.371,2.85671756]
[1645910754396,50.00330733,92.478,92.371,2.29430435]
[1645910754596,53.65554886,92.459,92.381,2.8148766]
[1645910755197,53.65554886,92.459,92.358,3.0403945]
[1645910755399,23.4226,92.458,92.342,3.04146918]
[1645910755602,23.4226,92.458,92.361,109.1]
[1645910755799,23.4226,92.458,92.362,2.73721279]
[1645910756000,53.65554886,92.459,92.372,2.85869268]
[1645910756400,53.65554886,92.459,92.373,140.95018012]
[1645910756600,53.65554886,92.459,92.377,109.1]
[1645910756801,53.65554886,92.459,92.391,109.1]
[1645910757001,53.65554886,92.459,92.401,109.1]
[1645910757204,16.2315,92.51,92.401,109.1]
[1645910757407,47.7034,92.517,92.403,109.1]
[1645910757601,47.7034,92.517,92.404,2.55732372]
[1645910757806,47.7034,92.517,92.405,109.1]
[1645910758002,47.7034,92.517,92.421,109.1]
[1645910758203,43.55128949,92.516,92.422,2.65280176]
[1645910759603,43.05128949,92.516,92.422,2.65280176]
[1645910761303,1.4000189,92.515,92.422,2.65280176]
[1645910761505,16.2351,92.48,92.422,2.65280176]
[1645910761704,43.02300239,92.479,92.401,2.69044015]
[1645910762806,43.02300239,92.479,92.41,16.2336]
[1645910763108,43.02300239,92.479,92.411,3.07613471]
[1645910763706,43.02300239,92.479,92.401,109.1]
[1645910763907,43.02300239,92.479,92.402,2.97134025]
[1645910765006,43.02300239,92.479,92.421,109.1]
[1645910765209,43.02300239,92.479,92.422,2.8823493]
[1645910766306,24.0764,92.508,92.422,2.8823493]
[1645910767108,54.68907949,92.507,92.422,2.8823493]
[1645910771511,24.0764,92.508,92.422,2.8823493]
[1645910771710,1.53568522,92.573,92.423,174.46]
[1645910771914,70.1384,92.586,92.431,174.46]
[1645910772110,70.1384,92.586,92.461,109.1]
[1645910772310,70.1384,92.586,92.462,3.04425562]
[1645910772512,45.33565283,92.585,92.462,3.04425562]
[1645910772912,16.2223,92.56,92.47,16.2207]
[1645910773114,24.715,92.559,92.47,16.2207]
[1645910773312,53.84236344,92.558,92.471,2.29657801]
[1645910774012,53.84236344,92.558,92.48,16.2214]
[1645910774211,53.84236344,92.558,92.481,2.71472711]
[1645910774812,53.84236344,92.558,92.481,111.81472711]
[1645910775012,53.84236344,92.558,92.482,2.98630856]
[1645910775414,53.84236344,92.558,92.462,111.82820788]
[1645910775616,53.84236344,92.558,92.463,2.92957942]
[1645910775915,53.84236344,92.558,92.462,109.1]
[1645910775916,53.84236344,92.558,92.491,2.94019271]
[1645910776614,53.84236344,92.558,92.491,112.04019271]
[1645910776815,53.84236344,92.558,92.492,2.54583632]
[1645910778016,53.84236344,92.558,92.501,2.77345752]
[1645910778718,53.84236344,92.558,92.488,3.12167036]
[1645910779117,53.84236344,92.558,92.488,112.22167036]
[1645910779317,53.84236344,92.558,92.489,2.60224431]
[1645910779517,53.84236344,92.558,92.481,2.44847985]
[1645910779715,53.84236344,92.558,92.46,13.03]
[1645910779716,53.84236344,92.558,92.47,13.03]
[1645910780320,53.84236344,92.558,92.472,2.82049329]
[1645910780622,53.84236344,92.558,92.49,16.2181]
[1645910780823,53.84236344,92.558,92.491,2.88092164]
[1645910781223,53.84236344,92.558,92.471,2.96718772]
[1645910781423,53.84236344,92.558,92.471,2.78189725]
[1645910781622,53.84236344,92.558,92.44,54.0771]
[1645910781822,16.2224,92.55,92.45,13.03]
[1645910782022,16.2224,92.55,92.445,2.96670011]
[1645910782023,110.6057879,92.549,92.445,2.96670011]
[1645910782223,1.82694794,92.548,92.428,3.03869809]
[1645910782427,109.1,92.529,92.428,3.03869809]
[1645910782626,50.45487882,92.527,92.428,3.03869809]
[1645910783429,50.45487882,92.527,92.425,15.8924]
[1645910783633,16.2289,92.52,92.426,111.92272399]
[1645910783826,16.2289,92.52,92.427,2.4401524]
[1645910784030,1.3701214,92.519,92.426,106.5401524]
[1645910784226,50.45487882,92.527,92.427,2.74358805]
[1645910784428,1.42101055,92.526,92.427,2.74358805]
[1645910784726,50.45487882,92.527,92.43,13.03]
[1645910784947,50.45487882,92.527,92.451,106.5401524]
[1645910785146,50.45487882,92.527,92.441,109.1]
[1645910785346,50.45487882,92.527,92.44,13.03]
[1645910785949,50.45487882,92.527,92.44,29.2565]
[1645910787550,16.2278,92.52,92.44,29.2565]
[1645910788151,50.45487882,92.527,92.44,29.2565]
[1645910788850,1.77327944,92.526,92.44,29.2565]
[1645910789051,1.77327944,92.526,92.44,16.2265]
[1645910790054,50.45487882,92.527,92.441,109.1]
[1645910790254,50.45487882,92.527,92.451,109.1]
[1645910790655,50.45487882,92.527,92.45,16.2255]
[1645910796163,50.45487882,92.527,92.451,109.1]
[1645910796362,50.45487882,92.527,92.46,16.2236]
[1645910797562,50.45487882,92.527,92.46,15.7236]
[1645910799064,50.45487882,92.527,92.461,109.1]
[1645910799264,50.45487882,92.527,92.47,16.2217]
[1645910805868,50.45487882,92.527,92.461,16.2553]
[1645910806071,1.78417564,92.526,92.435,16.0203]
[1645910806471,1.28417564,92.526,92.435,16.0203]
[1645910807168,16.2278,92.52,92.42,54.0861]
[1645910807373,1.43401188,92.519,92.42,54.0861]
[1645910807769,1.43401188,92.519,92.412,2.60208244]
[1645910807973,1.58088533,92.526,92.415,109.1]
[1645910808372,1.58088533,92.526,92.416,131.58225158]
[1645910808772,1.58088533,92.526,92.417,22.48225158]
[1645910809473,16.2293,92.51,92.42,16.2293]
[1645910809673,50.64943912,92.508,92.421,2.79142395]
[1645910810574,16.2312,92.5,92.421,2.79142395]
[1645910811796,24.2412,92.5,92.421,2.79142395]
[1645910812896,8.01,92.5,92.421,111.89142395]
[1645910813097,50.64943912,92.508,92.422,2.88907632]
[1645910814095,50.64943912,92.508,92.425,2.95325676]
[1645910815696,50.64943912,92.508,92.427,109.1]
[1645910815897,50.64943912,92.508,92.431,109.1]
[1645910816097,50.64943912,92.508,92.45,16.2247]
[1645910816297,50.64943912,92.508,92.451,2.41819152]
[1645910816698,50.64943912,92.508,92.432,5.05127415]
[1645910817000,50.64943912,92.508,92.43,54.0821]
[1645910817001,109.1,92.569,92.452,109.1]
[1645910817200,46.0305,92.545,92.453,2.31965915]
[1645910817898,59.79645929,92.544,92.453,2.31965915]
[1645910818602,59.79645929,92.544,92.461,109.1]
[1645910818803,59.79645929,92.544,92.462,2.54567968]
[1645910819204,59.79645929,92.544,92.462,5.29246889]
[1645910819608,59.79645929,92.544,92.463,2.74678921]
[1645910820608,59.79645929,92.544,92.471,112.16485278]
[1645910820807,59.79645929,92.544,92.471,3.06485278]
[1645910821609,59.79645929,92.544,92.481,112.0652657]
[1645910821809,59.79645929,92.544,92.482,2.4027903]
[1645910822008,59.79645929,92.544,92.481,2.81865188]
[1645910822210,59.79645929,92.544,92.473,2.96420849]
[1645910822610,59.79645929,92.544,92.49,16.2174]
[1645910822810,59.79645929,92.544,92.491,2.96949948]
[1645910823313,59.79645929,92.544,92.462,4.323]
[1645910823914,59.79645929,92.544,92.47,16.222]
[1645910824212,59.79645929,92.544,92.471,2.46800119]
[1645910824413,59.79645929,92.544,92.451,2.45944479]
[1645910825015,59.79645929,92.544,92.451,111.55944479]
[1645910825315,59.79645929,92.544,92.461,2.53831369]
[1645910825518,59.79645929,92.544,92.46,13.03]
[1645910825717,59.79645929,92.544,92.461,2.94581486]
[1645910825918,59.79645929,92.544,92.46,13.03]
[1645910826120,59.29645929,92.544,92.441,4.324]
[1645910826322,109.1,92.539,92.441,6.96489499]
[1645910826521,109.1,92.539,92.441,4.324]
[1645910826721,1.66377751,92.538,92.441,4.324]
[1645910827121,1.66377751,92.538,92.415,109.1]
[1645910827324,54.8557488,92.499,92.42,16.2318]
[1645910827522,48.5612,92.498,92.421,2.80708721]
[1645910828724,16.2331,92.49,92.421,2.80708721]
[1645910828924,16.2331,92.49,92.415,2.72530188]
[1645910829326,15.7331,92.49,92.415,2.72530188]
[1645910832226,16.2346,92.48,92.415,2.72530188]
[1645910832431,47.54723015,92.479,92.415,2.72530188]
[1645910833635,16.2346,92.48,92.415,2.72530188]
[1645910834733,48.5612,92.498,92.415,109.1]
[1645910834938,48.5612,92.498,92.421,109.1]
[1645910835132,24.8084,92.56,92.422,2.70531661]
[1645910835331,45.9881,92.536,92.423,109.1]
[1645910835532,45.9881,92.536,92.431,109.1]
[1645910835732,43.45375146,92.535,92.431,3.0370945]
[1645910835934,43.45375146,92.535,92.432,23.09497728]
[1645910836333,43.45375146,92.535,92.433,2.63919098]
[1645910837452,16.2261,92.53,92.44,16.2275]
[1645910837749,16.2261,92.53,92.441,2.90955238]
[1645910838149,43.45375146,92.535,92.441,2.90955238]
[1645910838349,43.45375146,92.535,92.442,2.75697381]
[1645910839552,16.2262,92.53,92.45,16.2259]
[1645910839751,16.2262,92.53,92.451,2.9015366]
[1645910841051,51.84822481,92.509,92.431,2.4321809]
[1645910841751,23.3495,92.508,92.415,2.83002139]
[1645910842554,16.233,92.5,92.415,2.83002139]
[1645910842952,132.4495,92.508,92.415,2.83002139]
[1645910843553,16.2349,92.48,92.415,2.83002139]
[1645910843752,57.18530601,92.478,92.415,2.83002139]
[1645910845253,57.18530601,92.478,92.39,16.2362]
[1645910845454,57.18530601,92.478,92.387,3.01279939]
[1645910845654,57.18530601,92.478,92.379,2.58061665]
[1645910846554,56.72453284,92.449,92.38,16.239]
[1645910846758,16.2402,92.45,92.381,2.33353375]
[1645910846956,24.8779,92.479,92.381,2.33353375]
[1645910847157,24.3779,92.479,92.39,15.59]
[1645910847559,24.3779,92.479,92.391,2.61844855]
[1645910847756,60.36950776,92.478,92.391,2.61844855]
[1645910848457,16.2365,92.47,92.391,2.61844855]
[1645910849060,24.1914,92.469,92.391,2.61844855]
[1645910849458,24.1914,92.469,92.393,109.1]
[1645910849660,24.1914,92.469,92.401,2.54269135]
[1645910849858,24.1914,92.469,92.401,111.64269135]
[1645910850062,24.1914,92.469,92.401,5.28948056]
[1645910850659,24.3779,92.479,92.411,2.98691738]
[1645910850859,24.3779,92.479,92.412,112.2]
[1645910851059,24.3779,92.479,92.413,2.7877385]
[1645910852259,23.0698,92.478,92.413,2.7877385]
[1645910852460,23.0698,92.478,92.42,16.2306]
[1645910852860,23.0698,92.478,92.421,2.32541819]
[1645910854860,69.6856,92.54,92.421,2.32541819]
[1645910855060,47.0894,92.531,92.421,2.32541819]
[1645910855660,56.13775819,92.53,92.421,2.32541819]
[1645910855960,16.2296,92.51,92.421,2.32541819]
[1645910856161,51.71279785,92.508,92.421,2.32541819]
[1645910857964,51.21279785,92.508,92.421,2.32541819]
[1645910861765,51.21279785,92.508,92.421,1.82541819]
[1645910865472,16.2312,92.5,92.421,1.82541819]
[1645910866071,24.9708,92.499,92.421,1.82541819]
[1645910866871,24.805,92.498,92.421,1.82541819]
[1645910867275,24.805,92.498,92.422,2.74678921]
[1645910867473,24.805,92.498,92.421,1.82541819]
[1645910868976,24.805,92.498,92.422,2.74678921]
[1645910869174,51.21279785,92.508,92.422,10.50678921]
[1645910869378,23.4657,92.507,92.424,2.9421759]
[1645910869874,23.4657,92.507,92.424,5.68896511]
[1645910870678,23.4657,92.507,92.424,2.9421759]
[1645910871103,1.65330346,92.506,92.42,31.8206]
[1645910871301,1.65330346,92.506,92.42,16.2306]
[1645910871803,23.4657,92.507,92.42,16.2306]
[1645910872001,23.4657,92.507,92.421,2.36868254]
[1645910872903,23.4657,92.507,92.422,2.74678921]
[1645910873102,23.4657,92.507,92.422,46.86208485]
[1645910873302,23.4657,92.507,92.423,15.94850619]
[1645910873508,23.4657,92.507,92.423,60.24558945]
[1645910873704,23.4657,92.507,92.424,2.79750146]
[1645910873903,23.4657,92.507,92.424,5.54429067]
[1645910874102,23.4657,92.507,92.425,2.74678921]
[1645910878410,23.4657,92.507,92.425,16.13029381]
[1645910878610,23.4657,92.507,92.426,3.02043516]
[1645910878812,23.4657,92.507,92.44,16.227]
[1645910879212,23.4657,92.507,92.441,2.4378429]
[1645910879411,23.4657,92.507,92.431,2.57122741]
[1645910880516,23.4657,92.507,92.43,15.59]
[1645910880517,23.4657,92.507,92.451,2.6091178]
[1645910882014,22.5043,92.529,92.461,3.04719122]
[1645910882215,24.8672,92.528,92.461,3.04719122]
[1645910882416,24.8672,92.528,92.452,2.74678921]
[1645910882615,54.08,92.57,92.452,2.74678921]
[1645910882816,49.07659627,92.568,92.461,2.74678921]
[1645910883015,49.07659627,92.568,92.48,16.2211]
[1645910883214,49.07659627,92.568,92.481,2.55466571]
[1645910883613,49.07659627,92.568,92.463,2.96681452]
[1645910883814,49.07659627,92.568,92.464,2.92397456]
[1645910884017,49.07659627,92.568,92.465,109.1]
[1645910884215,49.07659627,92.568,92.466,2.9781959]
[1645910884623,49.07659627,92.568,92.491,2.79876726]
[1645910888922,49.07659627,92.568,92.5,16.2176]
[1645910889126,49.07659627,92.568,92.501,2.63105318]
[1645910889424,15.59,92.62,92.501,2.74678921]
[1645910889624,8.425e-05,92.583,92.52,194.86]
[1645910889823,48.9468,92.655,92.52,194.86]
[1645910889824,48.9468,92.655,92.617,2.42308862]
[1645910890427,44.5431055,92.654,92.617,2.42308862]
[1645910890625,43.5431055,92.654,92.616,22.57608562]
[1645910893426,120.0,92.653,92.616,8.562e-05]
[1645910893725,48.9468,92.655,92.616,8.562e-05]
[1645910893926,1.8001732,92.652,92.616,8.562e-05]
[1645910894125,48.9468,92.655,92.616,8.562e-05]
[1645910895228,48.9468,92.655,92.569,2.25507202]
[1645910895428,49.13641493,92.654,92.569,2.25507202]
[1645910895626,16.206,92.65,92.571,2.54663829]
[1645910896929,109.1,92.639,92.551,2.66722719]
[1645910897128,109.1,92.639,92.52,70.2581]
[1645910897129,44.67723177,92.638,92.521,2.97587979]
[1645910897349,43.07317094,92.638,92.53,15.59]
[1645910897530,43.07317094,92.638,92.531,2.3236218]
[1645910897730,43.07317094,92.638,92.531,26.66646585]
[1645910897930,43.07317094,92.638,92.532,34.244529]
[1645910898132,43.07317094,92.638,92.541,109.1]
[1645910898332,43.07317094,92.638,92.55,15.59]
[1645910898533,24.8698,92.637,92.551,2.56997492]
[1645910899734,24.8698,92.637,92.56,16.2071]
[1645910899936,43.07317094,92.638,92.561,2.34507772]
[1645910900535,42.07317094,92.638,92.562,2.86450104]
[1645910900937,42.07317094,92.638,92.56,31.7963]
[1645910901341,22.6631,92.637,92.56,31.7963]
[1645910903339,22.6631,92.637,92.57,16.2054]
[1645910904539,42.07317094,92.638,92.57,16.2054]
[1645910904741,42.07317094,92.638,92.571,2.34465812]
[1645910906757,42.07317094,92.638,92.571,111.44465812]
[1645910906958,42.07317094,92.638,92.572,2.39048898]
[1645910907259,23.9732,92.653,92.581,109.1]
[1645910907458,23.9732,92.653,92.582,2.89270742]
[1645910908258,51.77147812,92.652,92.582,2.89270742]
[1645910908460,51.77147812,92.652,92.572,2.5798376]
[1645910908659,23.9732,92.653,92.601,3.07589735]
[1645910909158,23.9732,92.653,92.583,2.74678921]
[1645910909359,23.9732,92.653,92.584,4.317]
[1645910909559,83.04222278,92.653,92.584,4.317]
[1645910910058,83.04222278,92.653,92.582,2.95453048]
[1645910911561,83.04222278,92.653,92.59,16.2008]
[1645910911964,83.04222278,92.653,92.591,2.49271042]
[1645910912365,83.04222278,92.653,92.581,112.16944494]
[1645910912563,83.04222278,92.653,92.582,2.392287]
[1645910913266,83.04222278,92.653,92.6,16.2002]
[1645910913465,83.04222278,92.653,92.601,2.392659]
[1645910914364,83.04222278,92.653,92.6,16.2002]
[1645910915965,83.04222278,92.653,92.58,53.9963]
[1645910916165,83.04222278,92.653,92.561,2.73644322]
[1645910916665,83.04222278,92.653,92.56,54.0089]
[1645910916865,1.72460882,92.667,92.561,65.36]
[1645910917066,47.8419,92.719,92.6,16.1965]
[1645910917266,47.8419,92.719,92.601,2.52900198]
[1645910917466,47.8419,92.719,92.601,152.38181624]
[1645910917668,47.8419,92.719,92.602,2.77921339]
[1645910917866,51.79578548,92.718,92.604,2.77449815]
[1645910918068,47.8419,92.719,92.63,16.1944]
[1645910918468,47.8419,92.719,92.631,109.1]
[1645910918668,47.8419,92.719,92.632,2.59028814]
[1645910919267,49.11541914,92.718,92.65,16.1908]
[1645910921072,50.48174905,92.718,92.624,4.316]
[1645910922575,16.1949,92.71,92.63,16.194]
[1645910922776,16.1949,92.71,92.631,2.48162239]
[1645910923073,16.1949,92.71,92.624,4.316]
[1645910923474,16.1949,92.71,92.552,5.41]
[1645910923475,109.1,92.679,92.6,16.1992]
[1645910923674,16.2016,92.68,92.554,2.92911144]
[1645910923675,109.1,92.677,92.554,2.92911144]
[1645910923875,109.1,92.677,92.514,126.889]
[1645910924074,23.1129,92.676,92.52,15.59]
[1645910924277,1.51139308,92.675,92.521,2.64682055]
[1645910924475,1.71756752,92.669,92.521,2.64682055]
[1645910924778,1.71756752,92.669,92.522,3.00029122]
[1645910925177,1.5961837,92.668,92.522,3.00029122]
[1645910925380,24.5292,92.667,92.522,3.00029122]
[1645910925577,16.2042,92.66,92.56,16.205]
[1645910925776,50.59980269,92.659,92.56,16.205]
[1645910925976,50.59980269,92.659,92.561,2.41852869]
[1645910926179,1.74193415,92.658,92.561,2.41852869]
[1645910926676,1.53601718,92.649,92.56,16.205]
[1645910926876,16.2049,92.65,92.57,16.2041]
[1645910927077,16.2049,92.65,92.571,2.83545601]
[1645910927679,22.8438,92.649,92.542,3.01372231]
[1645910927880,22.8438,92.649,92.58,16.2028]
[1645910928878,22.8438,92.649,92.581,2.5231059]
[1645910929079,22.8438,92.649,92.59,16.2007]
[1645910929681,22.8438,92.649,92.561,109.1]
[1645910929883,23.7898,92.648,92.562,2.76823735]
[1645910930484,23.7898,92.648,92.57,16.2031]
[1645910930685,23.7898,92.648,92.571,2.32598766]
[1645910930885,23.7898,92.648,92.57,16.2031]
[1645910931683,23.7898,92.648,92.571,2.26583775]
[1645910932086,23.7898,92.648,92.581,3.10634999]
[1645910932787,50.59980269,92.659,92.561,109.1]
[1645910932987,50.59980269,92.659,92.59,16.2009]
[1645910933186,50.59980269,92.659,92.591,2.66261682]
[1645910933586,50.59980269,92.659,92.572,2.61518902]
[1645910934587,50.59980269,92.659,92.6,16.1988]
[1645910939292,50.59980269,92.659,92.572,2.61518902]
[1645910939492,50.59980269,92.659,92.58,16.2017]
[1645910940295,47.1387,92.658,92.58,16.2017]
[1645910942896,110.68898331,92.657,92.561,3.10654031]
[1645910943096,110.68898331,92.657,92.515,3.00533451]
[1645910943298,109.1,92.655,92.515,3.00533451]
[1645910943499,1.54535345,92.654,92.515,3.00533451]
[1645910943702,109.1,92.649,92.515,3.00533451]
[1645910943898,16.211,92.62,92.54,16.2086]
[1645910944098,45.577607,92.618,92.54,16.2086]
[1645910944298,43.96055536,92.618,92.54,16.2086]
[1645910944497,1.74754366,92.617,92.54,16.2086]
[1645910944699,43.96055536,92.618,92.54,16.2086]
[1645910944897,1.36897865,92.617,92.54,16.2086]
[1645910945098,1.86799567,92.617,92.54,16.2086]
[1645910945598,16.2118,92.61,92.54,16.2086]
[1645910945801,16.2118,92.61,92.515,3.00533451]
[1645910945802,16.2118,92.61,92.52,16.2121]
[1645910946000,1.86197496,92.609,92.52,16.2121]
[1645910946822,1.86197496,92.609,92.53,16.2111]
[1645910947021,43.96055536,92.618,92.53,16.2111]
[1645910947220,43.96055536,92.618,92.531,2.45379145]
[1645910947422,1.72643792,92.617,92.521,2.91550116]
[1645910948122,43.96055536,92.618,92.521,2.91550116]
[1645910948523,109.1,92.609,92.521,2.91550116]
[1645910948721,15.59,92.6,92.484,2.51744331]
[1645910948922,15.59,92.6,92.466,112.2]
[1645910948923,109.1,92.597,92.466,112.2]
[1645910949121,1.63786478,92.596,92.466,112.2]
[1645910949521,116.48,92.597,92.466,112.2]
[1645910949522,110.88339672,92.594,92.466,112.2]
[1645910949722,109.1,92.579,92.466,112.2]
[1645910949921,16.2242,92.55,92.466,112.2]
[1645910950124,45.3864,92.549,92.466,112.2]
[1645910950322,45.3864,92.549,92.467,3.06694382]
[1645910951524,45.3864,92.549,92.47,16.2211]
[1645910952524,45.3864,92.549,92.471,111.56194986]
[1645910952723,45.3864,92.549,92.49,16.2171]
[1645910952924,45.3864,92.549,92.491,2.89786954]
[1645910953324,1.83570905,92.594,92.491,2.89786954]
[1645910953526,23.4084,92.609,92.472,4.323]
[1645910953527,47.96097868,92.584,92.482,2.88805895]
[1645910953729,23.4356,92.583,92.491,2.74678921]
[1645910953924,23.4356,92.583,92.492,4.322]
[1645910954526,23.4356,92.583,92.5,16.2159]
[1645910954726,23.4356,92.583,92.501,7.43797961]
[1645910955127,23.4356,92.583,92.501,4.322]
[1645910955828,23.4356,92.583,92.492,4.322]
[1645910956230,1.60831954,92.582,92.492,4.322]
[1645910957029,1.60831954,92.582,92.491,5.50600385]
[1645910957832,16.217,92.58,92.491,2.74678921]